bitfinex-derivatives/quotes_BNBF0:USTF0_20250710
["timestamp","ask_amount","ask_price","bid_price","bid_amount"]
[1752176617679,1.6601194,676.49,676.39,0.99241741]
[1752176617880,1.6601194,676.49,676.4,0.99241741]
[1752176618079,1.6601194,676.49,676.41,0.99241741]
[1752176618377,1.6601194,676.49,676.42,0.99241741]
[1752176618580,1.6601194,676.49,676.43,0.99241741]
[1752176618775,1.6601194,676.49,676.44,0.99293628]
[1752176618980,1.6601194,676.49,676.45,0.99293628]
[1752176619181,1.6601194,676.49,676.46,0.99293628]
[1752176619376,1.6601194,676.49,676.47,0.99293628]
[1752176619577,1.6601194,676.49,676.48,0.99293628]
[1752176620181,2.2150782,676.61,676.48,0.99293628]
[1752176620381,2.2150782,676.61,676.49,0.99293628]
[1752176620584,2.2150782,676.61,676.5,0.99293628]
[1752176620884,2.2150782,676.6,676.51,0.99293628]
[1752176621084,2.2150782,676.6,676.52,0.99293628]
[1752176621280,2.2150782,676.6,676.53,0.99293628]
[1752176621478,2.2150782,676.59,676.54,0.99293628]
[1752176621680,2.2150782,676.59,676.55,0.99293628]
[1752176621879,2.2150782,676.6,676.56,0.99293628]
[1752176622084,2.2150782,676.6,676.57,0.99293628]
[1752176622280,2.2150782,676.6,676.58,0.99293628]
[1752176622482,2.2150782,676.6,676.59,0.99293628]
[1752176623185,3.32089632,676.72,676.59,0.99293628]
[1752176623384,3.32089632,676.71,676.6,0.99293628]
[1752176623681,3.32089632,676.71,676.61,0.99293628]
[1752176623881,3.32089632,676.71,676.62,0.99293628]
[1752176624085,3.32089632,676.7,676.15,1.847]
[1752176624283,1.66250188,676.45,676.16,0.99373935]
[1752176624482,1.66250188,676.45,676.17,0.99373935]
[1752176624687,1.66250188,676.45,676.15,1.847]
[1752176624885,1.66250188,676.45,676.16,0.99373977]
[1752176625087,1.66250188,676.45,676.17,0.99373977]
[1752176625287,1.66250188,676.45,676.18,0.99373977]
[1752176625488,1.66250188,676.45,676.19,0.99373977]
[1752176625684,1.66250188,676.45,676.2,0.99373977]
[1752176625882,1.66250188,676.45,676.21,0.99373977]
[1752176626182,1.66250188,676.45,676.22,0.99373977]
[1752176626387,1.66250188,676.45,676.23,0.99373977]
[1752176626682,1.66250188,676.45,676.24,0.99373977]
[1752176626887,1.66250188,676.45,676.25,0.99373977]
[1752176627083,1.66250188,676.45,676.26,0.99373977]
[1752176627387,1.66250188,676.45,676.27,0.99373977]
[1752176627687,1.66250188,676.45,676.28,0.99373977]
[1752176627882,1.66250188,676.45,676.29,0.99373977]
[1752176628087,1.66250188,676.45,676.3,0.99373977]
[1752176628386,1.66250188,676.54,676.31,0.99373977]
[1752176628687,1.66250188,676.54,676.32,0.99373977]
[1752176628982,1.66250188,676.54,676.33,0.99373977]
[1752176629186,1.66250188,676.54,676.34,0.99373977]
[1752176629382,1.66250188,676.54,676.35,0.99373977]
[1752176629586,1.66250188,676.54,676.36,0.99373977]
[1752176629884,1.66250188,676.55,676.37,0.99373977]
[1752176630084,1.66250188,676.55,676.38,0.99373977]
[1752176630289,1.66250188,676.55,676.39,0.99373977]
[1752176630490,1.66250188,676.55,676.4,0.99373197]
[1752176630785,1.66250188,676.55,676.41,0.99373197]
[1752176630986,1.66250188,676.55,676.42,0.99373197]
[1752176631289,1.66250188,676.55,676.43,0.99373197]
[1752176631490,1.66250188,676.55,676.44,0.99373197]
[1752176631688,1.66250188,676.55,676.45,0.99373197]
[1752176631886,1.66250188,676.55,676.46,0.99373197]
[1752176632088,1.66250188,676.55,676.47,0.99373197]
[1752176632285,1.66250188,676.55,676.48,0.99373197]
[1752176632586,1.66250188,676.55,676.49,0.99373197]
[1752176632789,1.66250188,676.55,676.5,0.99373197]
[1752176632987,1.66250188,676.55,676.51,0.99373197]
[1752176633190,1.66250188,676.55,676.52,0.99373197]
[1752176633389,1.66250188,676.55,676.53,0.99373197]
[1752176633590,1.66250188,676.55,676.54,0.99373197]
[1752176637588,0.2571986,677.0,676.54,0.99373197]
[1752176637589,1.66250188,676.59,676.54,0.99373197]
[1752176637888,1.66250188,676.59,676.55,0.99373197]
[1752176638091,1.66250188,676.57,676.56,0.99373197]
[1752176639393,1.66250188,676.58,676.56,0.99373197]
[1752176639692,1.66250188,676.58,676.57,0.99373197]
[1752176647594,2.21666917,676.7,676.57,0.99373197]
[1752176647797,2.21666917,676.7,676.58,0.99373197]
[1752176647996,2.21666917,676.7,676.59,0.99373197]
[1752176648294,2.21666917,676.7,676.6,0.99373197]
[1752176648497,2.21666917,676.7,676.61,0.99373197]
[1752176648698,2.21666917,676.7,676.62,0.99373197]
[1752176648896,2.21666917,676.7,676.63,0.99373197]
[1752176649196,2.21666917,676.7,676.64,0.99373197]
[1752176649399,2.21666917,676.7,676.65,0.99373197]
[1752176649599,2.21666917,676.7,676.66,0.99373197]
[1752176649800,2.21666917,676.71,676.67,0.99373197]
[1752176649997,2.21666917,676.71,676.68,0.99373197]
[1752176650201,2.21666917,676.71,676.69,0.99373197]
[1752176650497,2.21666917,676.71,676.15,1.847]
[1752176650697,1.6623165,676.52,676.16,0.99329978]
[1752176650996,1.6623165,676.52,676.17,0.99329978]
[1752176651197,1.6623165,676.52,676.18,0.99329978]
[1752176651397,1.6623165,676.52,676.19,0.99329978]
[1752176651598,1.6623165,676.52,676.2,0.99329978]
[1752176651797,1.6623165,676.52,676.21,0.99329978]
[1752176651999,1.6623165,676.53,676.22,0.99329978]
[1752176652202,1.6623165,676.53,676.23,0.99329978]
[1752176652496,1.6623165,676.53,676.24,0.99329978]
[1752176652798,1.6623165,676.53,676.25,0.99329978]
[1752176653095,1.6623165,676.53,676.26,0.99329978]
[1752176653298,1.6623165,676.53,676.27,0.99329978]
[1752176653498,1.6623165,676.53,676.28,0.99329978]
[1752176653696,1.6623165,676.53,676.29,0.99329978]
[1752176653900,1.6623165,676.53,676.3,0.99329978]
[1752176654201,1.6623165,676.52,676.31,0.99329978]
[1752176654500,1.6623165,676.52,676.32,0.99329978]
[1752176654800,1.6623165,676.52,676.33,0.99329978]
[1752176654995,1.6623165,676.52,676.34,0.99329978]
[1752176655199,1.6623165,676.52,676.35,0.99329978]
[1752176655396,1.6623165,676.52,676.36,0.99329978]
[1752176655600,1.6623165,676.52,676.37,0.99329978]
[1752176655800,1.6623165,676.52,676.38,0.99329978]
[1752176655998,1.6623165,676.52,676.39,0.99329978]
[1752176656202,1.6623165,676.52,676.4,0.99329978]
[1752176656502,1.6623165,676.52,676.41,0.99329978]
[1752176656702,1.6623165,676.53,676.42,0.99329978]
[1752176656902,1.6623165,676.53,676.43,0.99329978]
[1752176657103,1.6623165,676.53,676.44,0.99329978]
[1752176657303,1.6623165,676.54,676.45,0.99329978]
[1752176657506,1.6623165,676.54,676.46,0.99329978]
[1752176657699,1.6623165,676.54,676.47,0.99329978]
[1752176657906,1.6623165,676.54,676.15,1.847]
[1752176657907,1.6623165,676.52,676.48,0.99329978]
[1752176658200,1.6623165,676.52,676.49,0.99329978]
[1752176658405,1.6623165,676.52,676.5,0.99329978]
[1752176658702,1.6623165,676.52,676.51,0.99329978]
[1752176666409,2.21666917,676.66,676.51,0.99329978]
[1752176666609,2.21666917,676.66,676.52,0.99329978]
[1752176666805,2.21666917,676.66,676.53,0.99329978]
[1752176667104,2.21666917,676.66,676.54,0.99329978]
[1752176667305,2.21666917,676.66,676.55,0.99329978]
[1752176667609,2.21666917,676.66,676.56,0.99329978]
[1752176667806,2.21666917,676.66,676.57,0.99329978]
[1752176668109,2.21666917,676.66,676.58,0.99329978]
[1752176668305,2.21666917,676.66,676.59,0.99329978]
[1752176668508,2.21666917,676.66,676.6,0.99329978]
[1752176668707,2.21666917,676.66,676.61,0.99329978]
[1752176668913,2.21666917,676.66,676.62,0.99329978]
[1752176669213,2.21666917,676.66,676.63,0.99329978]
[1752176669406,2.21666917,676.66,676.64,0.99329978]
[1752176669610,2.21666917,676.66,676.65,0.99329978]
[1752176670007,2.21666917,676.66,676.65,0.99340597]
[1752176671615,2.21666917,676.68,676.65,0.99340597]
[1752176671915,2.21666917,676.72,676.66,0.99340597]
[1752176672119,2.21666917,676.71,676.67,0.99340597]
[1752176672317,2.21666917,676.71,676.68,0.99340597]
[1752176672519,2.21666917,676.71,676.69,0.99340597]
[1752176672714,2.21666917,676.71,676.7,0.99340597]
[1752176672919,2.21666917,676.71,676.33,1.356]
[1752176673120,1.66230835,676.52,676.34,0.9934482]
[1752176673318,1.66230835,676.52,676.35,0.9934482]
[1752176673526,1.66230835,676.52,676.36,0.9934482]
[1752176673723,1.66230835,676.52,676.37,0.9934482]
[1752176673918,1.66230835,676.52,676.38,0.9934482]
[1752176674124,1.66230835,676.52,676.39,0.9934482]
[1752176674321,1.66230835,676.52,676.4,0.9934482]
[1752176674620,1.66230835,676.52,676.41,0.9934482]
[1752176674824,1.66230835,676.52,676.42,0.9934482]
[1752176675025,1.66230835,676.52,676.43,0.9934482]
[1752176675222,1.66230835,676.52,676.44,0.9934482]
[1752176675426,1.66230835,676.52,676.45,0.9934482]
[1752176675625,1.66230835,676.52,676.46,0.9934482]
[1752176675924,1.66230835,676.52,676.47,0.9934482]
[1752176676120,1.66230835,676.52,676.48,0.9934482]
[1752176676322,1.66230835,676.52,676.49,0.9934482]
[1752176676523,1.66230835,676.52,676.5,0.9934482]
[1752176676727,1.66230835,676.52,676.51,0.9934482]
[1752176681733,2.21666917,676.61,676.51,0.9934482]
[1752176682031,2.21666917,676.61,676.52,0.9934482]
[1752176682230,2.21666917,676.61,676.53,0.9934482]
[1752176682430,2.21666917,676.61,676.54,0.9934482]
[1752176682631,2.21666917,676.61,676.55,0.9934482]
[1752176682831,2.21666917,676.61,676.56,0.9934482]
[1752176683033,2.21666917,676.61,676.57,0.9934482]
[1752176683232,2.21666917,676.61,676.58,0.9934482]
[1752176683532,2.21666917,676.61,676.59,0.9934482]
[1752176683732,2.21666917,676.61,676.6,0.9934482]
[1752176684229,2.21666917,676.68,676.6,0.9934482]
[1752176684432,2.21666917,676.68,676.61,0.9934482]
[1752176684728,2.21666917,676.67,676.62,0.9934482]
[1752176684928,2.21666917,676.67,676.33,1.356]
[1752176685132,1.66214981,676.5,676.34,0.99367511]
[1752176685333,1.66214981,676.43,676.35,0.99367511]
[1752176685629,1.66214981,676.43,676.36,0.99367511]
[1752176685929,1.66214981,676.43,676.37,0.99367511]
[1752176686128,1.66214981,676.43,676.38,0.99367511]
[1752176686332,1.66214981,676.44,676.39,0.99367511]
[1752176686633,1.66214981,676.44,676.4,0.99367511]
[1752176686832,1.66214981,676.44,676.41,0.99367511]
[1752176687028,1.66214981,676.44,676.42,0.99367511]
[1752176687233,1.66214981,676.44,676.43,0.99367511]
[1752176688133,1.66214981,676.45,676.43,0.99367511]
[1752176688430,1.66214981,676.45,676.44,0.99367511]
[1752176689228,2.21666917,676.59,676.44,0.99367511]
[1752176689529,2.21666917,676.59,676.45,0.99367511]
[1752176689728,2.21666917,676.59,676.46,0.99367511]
[1752176689932,2.21666917,676.59,676.47,0.99367511]
[1752176690233,2.21666917,676.6,676.48,0.99367511]
[1752176690430,2.21666917,676.6,676.49,0.99367511]
[1752176690732,2.21666917,676.6,676.5,0.99367511]
[1752176690928,2.21666917,676.6,676.51,0.99367511]
[1752176691133,2.21666917,676.59,676.33,1.356]
[1752176691328,1.66040912,676.41,676.34,0.99264833]
[1752176691532,1.66040912,676.41,676.35,0.99264833]
[1752176691732,1.66040912,676.41,676.36,0.99264833]
[1752176692027,1.66040912,676.41,676.37,0.99264833]
[1752176692231,1.66040912,676.42,676.38,0.99264833]
[1752176692432,1.66040912,676.4,676.39,0.99264833]
[1752176692630,1.66040912,676.41,676.39,0.99264833]
[1752176692834,1.66040912,676.41,676.4,0.99264833]
[1752176693432,1.66040912,676.42,676.4,0.99264833]
[1752176693634,1.66040912,676.42,676.41,0.99264833]
[1752176694134,2.21666917,676.54,676.41,0.99264833]
[1752176694333,2.21666917,676.55,676.42,0.99264833]
[1752176694532,2.21666917,676.55,676.43,0.99264833]
[1752176694730,2.21666917,676.55,676.44,0.99264833]
[1752176694935,2.21666917,676.57,676.45,0.99264833]
[1752176695231,2.21666917,676.57,676.33,1.356]
[1752176695436,1.6596303,676.42,676.34,0.99237273]
[1752176695738,1.6596303,676.42,676.35,0.99237273]
[1752176695931,1.6596303,676.4,676.36,0.99237273]
[1752176696130,1.6596303,676.4,676.37,0.99237273]
[1752176696433,1.6596303,676.4,676.38,0.99237273]
[1752176696631,1.6596303,676.4,676.39,0.99237273]
[1752176697136,1.6596303,676.41,676.39,0.99237273]
[1752176697338,1.6596303,676.41,676.4,0.99237273]
[1752176704844,2.21666917,676.52,676.4,0.99237273]
[1752176705143,2.21666917,676.52,676.33,1.356]
[1752176705346,1.6584414,676.4,676.34,0.99201762]
[1752176705545,1.6584414,676.4,676.35,0.99201762]
[1752176705740,1.6584414,676.4,676.36,0.99201762]
[1752176705945,1.6584414,676.4,676.37,0.99201762]
[1752176706145,1.6584414,676.4,676.38,0.99201762]
[1752176706347,1.6584414,676.4,676.39,0.99201762]
[1752176709047,1.6584414,676.4,676.39,0.99189949]
[1752176711746,1.6584414,676.4,676.33,1.356]
[1752176711944,1.6584414,676.4,676.34,0.99212231]
[1752176712248,1.6584414,676.41,676.35,0.99212231]
[1752176712549,1.6584414,676.4,676.36,0.99212231]
[1752176712849,1.6584414,676.4,676.37,0.99212231]
[1752176713045,1.6584414,676.4,676.38,0.99212231]
[1752176713246,1.6584414,676.4,676.39,0.99212231]
[1752176713448,1.6584414,676.41,676.39,0.99212231]
[1752176713646,1.6584414,676.41,676.33,1.356]
[1752176713847,1.6584414,676.41,676.34,0.99209527]
[1752176714046,1.6584414,676.41,676.35,0.99209527]
[1752176714246,1.6584414,676.41,676.36,0.99209527]
[1752176714449,1.6584414,676.41,676.37,0.99209527]
[1752176714650,1.6584414,676.4,676.38,0.99209527]
[1752176714846,1.6584414,676.4,676.33,1.356]
[1752176715047,1.6584414,676.4,676.34,0.99208758]
[1752176715247,1.6584414,676.4,676.35,0.99208758]
[1752176715451,1.6584414,676.4,676.36,0.99208758]
[1752176715651,1.6584414,676.4,676.37,0.99208758]
[1752176715946,1.6584414,676.4,676.38,0.99208758]
[1752176716150,1.6584414,676.41,676.39,0.99208386]
[1752176716450,1.6584414,676.41,675.96,0.25720241]
[1752176716650,1.6584414,676.41,675.97,0.9920841]
[1752176716945,1.6584414,676.41,675.98,0.9920841]
[1752176717148,1.6584414,676.41,675.99,0.9920841]
[1752176717345,1.6584414,676.41,676.0,0.9920841]
[1752176717650,1.6584414,676.41,676.01,0.9920841]
[1752176717850,1.6584414,676.41,676.02,0.9920841]
[1752176718047,1.6584414,676.41,676.03,0.9920841]
[1752176718254,1.6584414,676.41,676.04,0.9920841]
[1752176718454,1.6584414,676.41,676.05,0.9920841]
[1752176718753,1.6584414,676.41,676.06,0.9920841]
[1752176718953,1.6584414,676.41,676.07,0.9920841]
[1752176719252,1.6584414,676.41,676.08,0.9920841]
[1752176719451,1.6584414,676.41,676.09,0.9920841]
[1752176719652,1.6584414,676.42,676.1,0.9920841]
[1752176719853,1.6584414,676.42,676.11,0.9920841]
[1752176720050,1.6584414,676.42,676.12,0.9920841]
[1752176720254,1.6584414,676.42,676.13,0.9920841]
[1752176720554,1.6584414,676.42,676.14,0.9920841]
[1752176720854,1.6584414,676.42,676.15,0.9920841]
[1752176721055,1.6584414,676.42,676.16,0.9920841]
[1752176721255,1.6584414,676.42,676.17,0.99175288]
[1752176721553,1.6584414,676.42,676.18,0.99175288]
[1752176721757,1.6584414,676.42,676.19,0.99175288]
[1752176721956,1.6584414,676.42,676.2,0.99175288]
[1752176722152,1.6584414,676.42,676.21,0.99175288]
[1752176722354,1.6584414,676.42,676.22,0.99175288]
[1752176722554,1.6584414,676.42,676.23,0.99175288]
[1752176722757,1.6584414,676.41,676.24,0.99175288]
[1752176722957,1.6584414,676.41,676.25,0.99175288]
[1752176723156,1.6584414,676.41,676.26,0.99175288]
[1752176723457,1.6584414,676.41,676.27,0.99175288]
[1752176723657,1.6584414,676.41,676.28,0.99175288]
[1752176723857,1.6584414,676.41,676.29,0.99175288]
[1752176724153,1.6584414,676.41,676.11,1.698]
[1752176724154,1.6584414,676.41,676.3,0.99175288]
[1752176724454,1.6584414,676.41,676.31,0.99175288]
[1752176724653,1.6584414,676.41,676.32,0.99175288]
[1752176724858,1.6584414,676.37,676.33,0.99175288]
[1752176725058,1.6584414,676.37,676.34,0.99175288]
[1752176725258,1.6584414,676.37,676.35,0.99175288]
[1752176725452,1.6584414,676.37,676.36,0.99175288]
[1752176726454,2.21666917,676.48,676.36,0.99175288]
[1752176726658,2.21666917,676.45,676.11,1.698]
[1752176726959,1.65842311,676.32,676.12,0.99284371]
[1752176727155,1.65842311,676.34,676.13,0.99284371]
[1752176727359,1.65842311,676.34,676.14,0.99284371]
[1752176727658,1.65842311,676.34,676.15,0.99284371]
[1752176727854,1.65842311,676.34,676.16,0.99284371]
[1752176728058,1.65842311,676.32,676.17,0.99284371]
[1752176728357,1.65842311,676.32,676.11,1.698]
[1752176728358,1.65842311,676.32,676.18,0.99284371]
[1752176728560,1.65842311,676.32,676.19,0.99284371]
[1752176728761,1.65842311,676.32,676.2,0.99284371]
[1752176729062,1.65842311,676.34,676.21,0.99284371]
[1752176729357,1.65842311,676.33,676.22,0.99284371]
[1752176729557,1.65842311,676.33,676.23,0.99284371]
[1752176729857,1.65842311,676.29,676.24,0.99284371]
[1752176730058,1.65842311,676.29,676.25,0.99284371]
[1752176730358,1.65842311,676.29,676.26,0.99284371]
[1752176730658,1.65842311,676.29,676.27,0.99284371]
[1752176730862,1.65842311,676.29,676.28,0.99284371]
[1752176731361,1.65842311,676.3,676.28,0.99284371]
[1752176731558,1.65842311,676.3,676.29,0.99284371]
[1752176732661,1.65842311,676.3,676.11,1.698]
[1752176732857,1.65842311,676.3,676.12,0.99306714]
[1752176733060,1.65842311,676.3,676.13,0.99306714]
[1752176733258,1.65842311,676.3,676.14,0.99306714]
[1752176733461,1.65842311,676.3,676.15,0.99306714]
[1752176733661,1.65842311,676.3,676.16,0.99306714]
[1752176733862,1.65842311,676.3,676.17,0.99306714]
[1752176734061,1.65842311,676.3,676.18,0.99306714]
[1752176734259,1.65842311,676.3,676.19,0.99306714]
[1752176734459,1.65842311,676.3,676.2,0.99306714]
[1752176734763,1.65842311,676.3,676.21,0.99306714]
[1752176735058,1.65842311,676.3,676.22,0.99306714]
[1752176735263,1.65842311,676.31,676.23,0.99306714]
[1752176735460,1.65842311,676.31,676.24,0.99306714]
[1752176735664,1.65842311,676.31,676.25,0.99306714]
[1752176735862,1.65842311,676.31,676.26,0.99306714]
[1752176736063,1.65842311,676.31,676.27,0.99306714]
[1752176736364,1.65842311,676.31,676.11,1.698]
[1752176736563,1.65842311,676.31,676.12,0.99291827]
[1752176736767,1.65842311,676.31,676.13,0.99291827]
[1752176736967,1.65842311,676.31,676.14,0.99291827]
[1752176737166,1.65842311,676.3,676.15,0.99291827]
[1752176737364,1.65842311,676.31,676.16,0.99291827]
[1752176737567,1.65842311,676.31,676.17,0.99291827]
[1752176737766,1.65842311,676.31,676.18,0.99291827]
[1752176737963,1.65842311,676.31,676.19,0.99291827]
[1752176738170,1.65842311,676.31,676.2,0.99291827]
[1752176738367,1.65842311,676.32,676.21,0.99291827]
[1752176738569,1.65842311,676.32,676.22,0.99291827]
[1752176738771,1.65842311,676.32,676.23,0.99291827]
[1752176739071,1.65842311,676.31,676.24,0.99287055]
[1752176739371,1.65842311,676.31,676.25,0.99287055]
[1752176739572,1.65842311,676.31,676.26,0.99287055]
[1752176739868,1.65842311,676.3,676.27,0.99287055]
[1752176740071,1.65842311,676.3,676.11,1.698]
[1752176740270,1.65842311,676.3,676.12,0.99288776]
[1752176740468,1.65842311,676.3,676.13,0.99288776]
[1752176740671,1.65842311,676.3,676.14,0.99288776]
[1752176740967,1.65842311,676.3,676.15,0.99288776]
[1752176741170,1.65842311,676.3,676.16,0.99288776]
[1752176741367,1.65842311,676.3,676.17,0.99288776]
[1752176741572,1.65842311,676.3,676.18,0.99288776]
[1752176741871,1.65842311,676.3,676.19,0.99288776]
[1752176742071,1.65842311,676.3,676.2,0.99288776]
[1752176742267,1.65842311,676.29,676.21,0.99288776]
[1752176742571,1.65842311,676.29,676.22,0.99288776]
[1752176742771,1.65842311,676.29,676.23,0.99288776]
[1752176742970,1.65842311,676.29,676.24,0.99288776]
[1752176743167,1.65842311,676.29,676.25,0.99288776]
[1752176743368,1.65842311,676.29,676.26,0.99288776]
[1752176743567,1.65842311,676.29,676.27,0.99288776]
[1752176743767,1.65842311,676.29,676.11,1.698]
[1752176743969,1.65842311,676.29,676.12,0.99315263]
[1752176744168,1.65842311,676.29,676.13,0.99315263]
[1752176744466,1.65842311,676.29,676.14,0.99315263]
[1752176744769,1.65842311,676.29,676.11,1.698]
[1752176744770,1.65842311,676.29,676.15,0.99315263]
[1752176744968,1.65842311,676.29,676.16,0.99315263]
[1752176745175,1.65842311,676.29,676.17,0.99315263]
[1752176745468,1.65842311,676.29,676.18,0.99315263]
[1752176745666,1.65842311,676.29,676.19,0.99315263]
[1752176745869,1.65842311,676.28,676.2,0.99315263]
[1752176746069,1.65842311,676.28,676.21,0.99315263]
[1752176746272,1.65842311,676.28,676.22,0.99315263]
[1752176746470,1.65842311,676.28,676.23,0.99315263]
[1752176746671,1.65842311,676.28,676.11,1.698]
[1752176746672,1.65842311,676.27,676.24,0.99315263]
[1752176746870,1.65842311,676.27,676.25,0.99315263]
[1752176747073,1.65842311,676.27,676.26,0.99315263]
[1752176748174,1.65842311,676.27,676.11,1.698]
[1752176748371,1.65842311,676.26,676.12,0.99320541]
[1752176748574,1.65842311,676.26,676.13,0.99320541]
[1752176748875,1.65842311,676.26,676.14,0.99320541]
[1752176749075,1.65842311,676.26,676.15,0.99320541]
[1752176749273,1.65842311,676.26,676.16,0.99320541]
[1752176749472,1.65842311,676.26,676.17,0.99320541]
[1752176749772,1.65842311,676.26,676.18,0.99320541]
[1752176749974,1.65842311,676.26,676.19,0.99320541]
[1752176750173,1.65842311,676.26,676.2,0.99320541]
[1752176750374,1.65842311,676.26,676.21,0.99320541]
[1752176750575,1.65842311,676.26,676.22,0.99320541]
[1752176750776,1.65842311,676.26,676.23,0.99320541]
[1752176751075,1.65666335,676.26,676.24,0.99320541]
[1752176751276,1.65666335,676.27,676.25,0.99320541]
[1752176751576,1.65666335,676.27,676.11,1.698]
[1752176751877,1.65666335,676.28,676.12,0.99350333]
[1752176752078,1.65666335,676.28,676.13,0.99350333]
[1752176752376,1.65666335,676.28,676.14,0.99350333]
[1752176752573,1.65666335,676.28,676.15,0.99350333]
[1752176752778,1.65666335,676.28,676.16,0.99350333]
[1752176752976,1.65666335,676.28,676.17,0.99350333]
[1752176753176,1.65666335,676.28,676.18,0.99350333]
[1752176753377,1.65666335,676.28,676.19,0.99350333]
[1752176753574,1.65666335,676.28,676.2,0.99350333]
[1752176753775,1.65666335,676.28,676.21,0.99350333]
[1752176753988,1.65666335,676.27,676.22,0.99350333]
[1752176754278,1.65666335,676.27,676.23,0.99350333]
[1752176754578,1.65666335,676.27,676.24,0.99350333]
[1752176754778,1.65666335,676.27,676.25,0.99350333]
[1752176754975,1.65666335,676.27,675.96,0.25720241]
[1752176755175,1.65666335,676.27,675.97,0.99348504]
[1752176755379,1.65666335,676.27,675.98,0.99348504]
[1752176755579,1.65666335,676.28,675.99,0.99348504]
[1752176755775,1.65666335,676.28,676.0,0.99348504]
[1752176755978,1.65666335,676.28,676.01,0.99348504]
[1752176756279,1.65666335,676.28,676.02,0.99348504]
[1752176756477,1.65666335,676.28,676.03,0.99348504]
[1752176756675,1.65666335,676.28,676.04,0.99348504]
[1752176756875,1.65666335,676.28,676.05,0.99348504]
[1752176757074,1.65666335,676.28,676.06,0.99348504]
[1752176757375,1.65666335,676.28,676.07,0.99348504]
[1752176757575,1.65666335,676.28,676.08,0.99348504]
[1752176757779,1.65666335,676.28,676.09,0.99348504]
[1752176757980,1.65666335,676.28,676.1,0.99348504]
[1752176758173,1.65666335,676.28,676.11,0.99348504]
[1752176758378,1.65666335,676.28,676.12,0.99348504]
[1752176758580,1.65666335,676.28,676.13,0.99348504]
[1752176758781,1.65666335,676.28,676.14,0.99348504]
[1752176758980,1.65666335,676.28,676.15,0.99348504]
[1752176759177,1.65666335,676.27,676.16,0.99348504]
[1752176759479,1.65666335,676.28,676.17,0.99348504]
[1752176759677,1.65666335,676.28,676.18,0.99348504]
[1752176759879,1.65666335,676.28,676.19,0.99348504]
[1752176760077,1.65666335,676.28,676.2,0.99348504]
[1752176760277,1.65666335,676.28,676.21,0.99348504]
[1752176760481,1.65666335,676.28,676.22,0.99348504]
[1752176760680,1.65666335,676.28,676.23,0.99348504]
[1752176760877,1.65666335,676.28,676.24,0.99348504]
[1752176761077,1.65666335,676.28,676.25,0.99348504]
[1752176761380,1.65666335,676.28,676.26,0.99348504]
[1752176761581,1.65666335,676.28,676.09,1.498]
[1752176761776,0.25728988,676.59,676.1,0.99347993]
[1752176761777,1.65666335,676.27,676.1,0.99347993]
[1752176762077,1.65666335,676.29,676.11,0.99347993]
[1752176762282,1.65666335,676.29,676.12,0.99347993]
[1752176762484,1.65666335,676.29,676.13,0.99347993]
[1752176762781,1.65666335,676.27,676.14,0.99347993]
[1752176763084,1.65666335,676.27,676.15,0.99347993]
[1752176763384,1.65666335,676.22,676.16,0.99347993]
[1752176763576,1.65666335,676.23,676.17,0.99347993]
[1752176763784,1.65666335,676.23,676.18,0.99347993]
[1752176763978,1.65666335,676.23,676.19,0.99347993]
[1752176764282,1.65666335,676.22,676.2,0.99347993]
[1752176764484,1.65666335,676.22,676.21,0.99347993]
[1752176766281,1.65666335,676.23,676.21,0.99347993]
[1752176766484,1.65666335,676.23,676.22,0.99347993]
[1752176768087,1.65666335,676.31,676.22,0.99347993]
[1752176768285,1.65666335,676.31,676.23,0.99347993]
[1752176768485,1.65666335,676.31,676.24,0.99347993]
[1752176768785,1.65666335,676.31,676.25,0.99347993]
[1752176768985,1.65666335,676.31,676.26,0.99347993]
[1752176769184,1.65666335,676.31,676.27,0.99347993]
[1752176769384,1.65666335,676.31,676.28,0.99347993]
[1752176769987,1.65666335,676.3,676.09,1.498]
[1752176770985,1.65666335,676.36,676.09,1.498]
[1752176771190,1.65666335,676.25,676.09,1.498]
[1752176771390,1.65666335,676.23,676.09,1.498]
[1752176771586,1.65666335,676.21,676.09,1.498]
[1752176772389,1.65666335,676.22,676.09,1.498]
[1752176772590,1.65666335,676.21,676.09,1.498]
[1752176774290,1.65666335,676.22,676.09,1.498]
[1752176774990,1.65666335,676.21,676.09,1.498]
[1752176776591,1.65666335,676.21,676.1,0.99367772]
[1752176776792,1.65666335,676.21,676.09,1.498]
[1752176776793,1.65666335,676.2,676.11,0.99367772]
[1752176777091,1.65666335,676.2,676.12,0.99367772]
[1752176777388,1.65666335,676.2,676.13,0.99355213]
[1752176777588,1.65666335,676.2,676.14,0.99355213]
[1752176777789,1.65666335,676.18,676.09,1.498]
[1752176777993,1.65666335,676.18,676.1,0.99355213]
[1752176778191,1.65666335,676.18,676.11,0.99355213]
[1752176778389,1.65666335,676.18,676.12,0.99355213]
[1752176778593,1.65666335,676.17,676.09,1.498]
[1752176778894,1.65666335,676.17,676.1,0.99344981]
[1752176779194,1.65666335,676.16,676.09,1.498]
[1752176780191,1.65666335,676.16,676.1,0.99354508]
[1752176780495,1.65666335,676.16,676.09,1.498]
[1752176780993,1.65666335,676.15,676.09,1.498]
[1752176781197,1.65666335,676.14,676.09,1.498]
[1752176781396,1.65666335,676.13,676.09,1.498]